bitfinex/quotes_ETHUSD_20240607
["timestamp","ask_amount","ask_price","bid_price","bid_amount"]
[1717732933511,2.2825,3811.1,3810.4,0.35166041]
[1717732934182,2.2825,3811.1,3810.5,2.62428]
[1717732934375,2.1825,3811.1,3810.5,2.62428]
[1717732934707,0.0992087,3811.5,3810.9,2.62403]
[1717732938362,0.0992087,3811.5,3810.5,2.62429]
[1717732938733,3.84877039,3811.4,3810.6,0.08056459]
[1717732938926,4.19911039,3811.1,3810.1,2.62454]
[1717732939133,4.19911039,3811.1,3810.2,0.08056459]
[1717732939332,4.19926039,3810.9,3810.2,0.08056459]
[1717732940041,2.62409,3810.9,3810.2,0.08056459]
[1717732942461,4.19926039,3810.9,3810.2,0.08056459]
[1717732942632,2.62409,3810.9,3810.2,0.08056459]
[1717732942843,2.6242,3810.7,3810.2,0.08056459]
[1717732943397,2.62441,3810.4,3809.4,2.62503]
[1717732944538,2.62459,3810.2,3809.4,2.62503]
[1717732945658,2.3444,3810.3,3809.4,2.62503]
[1717732946300,2.3444,3810.3,3809.8,2.62475]
[1717732946501,2.62433,3810.5,3809.8,2.62475]
[1717732946665,3.16309626,3810.5,3809.9,0.08127197]
[1717732946864,3.16309626,3810.5,3809.8,2.62475]
[1717732947891,0.53876626,3810.5,3809.8,2.62475]
[1717732948092,0.4062326,3810.7,3809.9,0.08127197]
[1717732948501,0.4062326,3810.7,3809.8,2.62475]
[1717732948865,0.4062326,3810.7,3809.9,0.08127197]
[1717732949402,0.4062326,3810.7,3809.8,2.62475]
[1717732949787,4.98124,3810.8,3810.1,2.62455]
[1717732950504,4.98124,3810.8,3810.2,0.08127197]
[1717732950715,4.98124,3810.8,3810.1,2.62455]
[1717732954739,4.98124,3810.8,3809.8,2.62478]
[1717732955045,2.6243,3810.6,3809.9,0.08127197]
[1717732955536,3.1412988,3810.6,3809.8,2.62478]
[1717732955912,3.1412988,3810.6,3809.9,0.08127197]
[1717732956540,3.1412988,3810.6,3809.8,2.62478]
[1717732956745,3.1412988,3810.6,3809.9,0.08127197]
[1717732956902,3.1412988,3810.6,3809.8,2.62478]
[1717732957104,3.1412988,3810.6,3809.9,0.08127197]
[1717732957445,3.1412988,3810.6,3809.8,2.62478]
[1717732957803,3.1412988,3810.6,3809.9,0.08127197]
[1717732958240,0.54983988,3810.5,3809.8,2.62478]
[1717732958773,0.54983988,3810.5,3809.9,0.08127197]
[1717732958903,2.62441,3810.4,3809.8,2.62478]
[1717732959103,2.62441,3810.4,3809.5,0.55]
[1717732959104,2.62441,3810.4,3809.9,0.08127197]
[1717732959443,2.6432688,3810.4,3809.5,3.17497]
[1717732959833,2.6432688,3810.4,3809.6,0.08127197]
[1717732960145,2.6432688,3810.4,3809.6,0.40689617]
[1717732960332,0.0188588,3810.4,3809.7,0.55]
[1717732960643,0.0188588,3810.4,3809.8,0.0812556]
[1717732960840,0.0188588,3810.4,3809.9,0.55]
[1717732961353,0.0188588,3810.4,3809.9,3.1747]
[1717732961506,0.0188588,3810.4,3810.0,0.3987256]
[1717732963136,2.2743,3810.2,3810.0,0.0812556]
[1717732963322,2.2931588,3810.2,3809.6,2.62489]
[1717732963525,2.2931588,3810.2,3809.7,0.0812556]
[1717732963771,2.2931588,3810.2,3809.6,2.62489]
[1717732964062,2.2931588,3810.2,3809.7,0.0812556]
[1717732968094,2.2931588,3810.2,3809.6,2.887379]
[1717732968293,3.86874656,3810.2,3809.6,2.887379]
[1717732968446,3.86874656,3810.2,3809.7,0.0812556]
[1717732968649,3.86874656,3810.2,3809.6,2.887379]
[1717732968875,2.2931588,3810.2,3809.6,2.887379]
[1717732969086,3.86874656,3810.2,3809.6,2.887379]
[1717732969654,1.59444656,3810.2,3809.6,2.887379]
[1717732969868,0.0188588,3810.2,3809.7,0.2887379]
[1717732970991,1.59444656,3810.2,3809.7,0.2887379]
[1717732971584,0.0188588,3810.2,3809.7,0.2887379]
[1717732972089,0.0188588,3810.2,3808.9,2.2942]
[1717732972090,2.62462,3810.1,3809.3,2.6251]
[1717732972388,1.57558776,3810.0,3809.4,0.6312556]
[1717732973092,2.6434788,3810.1,3809.4,0.6312556]
[1717732973093,4.21906656,3810.1,3809.4,0.6312556]
[1717732973451,1.57558776,3810.0,3809.4,0.6312556]
[1717732974392,1.59444656,3810.0,3809.4,0.6312556]
[1717732975075,0.0188588,3810.0,3809.4,0.6312556]
[1717732975399,0.0188588,3810.0,3809.5,2.62501]
[1717732975808,0.0188588,3810.0,3809.6,0.63138337]
[1717732976641,0.0188588,3810.0,3809.7,2.62486]
[1717732977230,0.0188588,3810.0,3809.8,0.08138337]
[1717732977594,0.0188588,3810.0,3809.7,2.62486]
[1717732977828,0.0188588,3810.0,3809.8,0.39886937]
[1717732980596,0.0188588,3810.0,3809.9,2.62474]
[1717732980964,0.0188588,3810.0,3809.9,3.17474]
[1717732981101,0.0188588,3810.0,3809.9,3.25612337]
[1717732983807,0.0188588,3810.0,3809.9,5.69862337]
[1717732984003,0.0188588,3810.0,3809.9,6.56272731]
[1717732988063,0.0188588,3810.0,3809.9,9.18746731]
[1717732988480,0.0188588,3810.0,3809.9,10.09929526]
[1717732988692,0.0188588,3810.0,3809.9,11.46700631]
[1717732988983,0.0188588,3810.0,3809.9,10.09929526]
[1717732989443,0.0188588,3810.0,3809.9,9.18746731]
[1717732989637,0.0188588,3810.0,3809.9,6.56272731]
[1717732992092,0.0188588,3810.0,3809.9,3.57022731]
[1717732992394,0.0188588,3810.0,3809.9,2.70612337]
[1717732992893,0.0188588,3810.0,3809.9,0.08138337]
[1717732993309,0.0188588,3810.0,3809.6,2.62491]
[1717732993509,0.0188588,3810.0,3809.9,0.08080688]
[1717732993708,0.0188588,3810.0,3809.6,2.62491]
[1717732994183,0.0188588,3810.0,3809.7,0.08080688]
[1717732994352,0.52750468,3810.0,3809.7,0.08080688]
[1717732994551,0.52750468,3810.0,3809.3,2.62514]
[1717732994754,0.0188588,3810.0,3809.4,0.08080688]
[1717732995875,2.62474,3809.9,3809.4,0.08080688]
[1717732996199,4.20063518,3809.9,3809.0,2.62535]
[1717732996411,2.62489,3809.7,3808.6,2.6256]
[1717732996561,2.2519,3809.6,3808.7,0.08080688]
[1717732997159,2.2519,3809.6,3808.6,2.6256]
[1717732997597,2.62503,3809.5,3808.7,0.08080688]
[1717732997756,2.62503,3809.5,3808.6,2.6256]
[1717732997960,2.62503,3809.5,3808.7,0.08080688]
[1717732998165,3.32897828,3809.5,3808.6,2.6256]
[1717732998408,3.32897828,3809.5,3808.7,0.63080688]
[1717732998610,3.32897828,3809.5,3808.7,0.55]
[1717732998825,3.34783708,3809.5,3808.7,0.55]
[1717732998971,2.62517,3809.3,3808.7,0.55]
[1717732999803,2.6440288,3809.3,3808.7,0.55]
[1717733000508,2.6440288,3809.3,3808.8,2.62544]
[1717733000509,0.0188588,3809.3,3808.8,2.62544]
[1717733000695,0.0188588,3809.3,3808.9,0.55]
[1717733000898,0.0188588,3809.3,3808.9,0.63080688]
[1717733001478,0.0188588,3809.3,3808.9,0.08080688]
[1717733001985,0.0188588,3809.3,3809.0,0.63080688]
[1717733004015,0.0188588,3809.3,3809.0,3.25613688]
[1717733005315,0.0188588,3809.3,3809.2,2.62522]
[1717733005472,0.0188588,3809.3,3809.2,3.17522]
[1717733005674,0.0188588,3809.3,3809.2,5.8821117]
[1717733005867,0.0188588,3809.3,3809.2,6.70092287]
[1717733006299,0.0188588,3809.3,3809.2,4.07570287]
[1717733010731,0.0188588,3809.3,3809.2,6.70092287]
[1717733012436,0.0188588,3809.3,3809.2,9.70092287]
[1717733013463,0.0188588,3809.3,3809.2,10.61285919]
[1717733013661,0.01471942,3809.3,3809.2,12.13862287]
[1717733013955,0.01471942,3809.3,3809.2,13.05055134]
[1717733014359,0.01471942,3809.3,3809.2,12.13862287]
[1717733015953,0.01471942,3809.3,3809.2,13.05053353]
[1717733017453,0.01471942,3809.3,3809.2,15.67575353]
[1717733018728,0.01471942,3809.3,3809.2,13.05053353]
[1717733018929,0.01471942,3809.3,3809.2,15.67575353]
[1717733019463,0.01471942,3809.3,3809.2,15.67574007]
[1717733019847,0.01471942,3809.3,3809.2,17.0435701]
[1717733020840,0.01150017,3809.3,3809.2,19.68426041]
[1717733021573,0.01150017,3809.3,3809.2,17.0435701]
[1717733023541,1.7e-07,3809.3,3809.2,25.07150005]
[1717733023741,2.458,3811.7,3811.0,2.62393]
[1717733024164,2.458,3811.7,3811.1,0.07822672]
[1717733024376,2.458,3811.7,3811.0,2.62393]
[1717733024781,2.458,3811.7,3811.1,0.07822672]
[1717733024948,0.41608222,3811.6,3811.1,0.07822672]
[1717733025284,0.41608222,3811.6,3811.2,0.07822672]
[1717733025648,0.41608222,3811.6,3811.0,2.62393]
[1717733025949,0.41608222,3811.6,3811.1,0.55]
[1717733026149,0.41608222,3811.6,3811.2,0.07822672]
[1717733026364,0.41608222,3811.6,3811.3,0.55]
[1717733026778,0.41608222,3811.6,3811.1,0.55]
[1717733027150,2.458,3811.7,3811.2,2.62382]
[1717733027356,2.458,3811.7,3811.3,0.55]
[1717733027865,2.458,3811.7,3811.4,0.07822672]
[1717733028183,2.458,3811.7,3811.5,0.55]
[1717733028416,2.7038,3811.7,3811.5,0.55]
[1717733028624,2.7038,3811.7,3811.6,0.07822672]
[1717733028818,2.458,3811.7,3811.6,0.55]
[1717733029021,2.458,3811.7,3811.6,0.62822672]
[1717733030627,2.2635,3812.3,3811.6,0.62822672]
[1717733030783,0.488653,3812.2,3811.7,0.55]
[1717733031293,0.488653,3812.2,3811.5,0.55]
[1717733031713,3.111863,3812.2,3811.5,0.55]
[1717733031879,2.62321,3812.2,3811.5,0.55]
[1717733032580,2.62329,3812.0,3811.5,0.55]
[1717733034328,2.62329,3812.0,3811.6,0.07792548]
[1717733034539,2.62329,3812.0,3811.7,0.55]
[1717733034684,0.499959,3811.9,3811.7,0.55]
[1717733034885,0.499959,3811.9,3811.8,0.07792548]
[1717733035186,0.499959,3811.9,3811.8,0.55]
[1717733035984,0.499959,3811.9,3811.8,0.62792548]
[1717733036220,2.62329,3812.0,3811.8,0.62792548]
[1717733039826,2.3763,3812.1,3811.8,0.62792548]
[1717733041335,4.97853,3812.3,3811.8,0.62792548]
[1717733041627,4.97853,3812.3,3811.9,0.55]
[1717733041828,4.97853,3812.3,3811.7,0.55]
[1717733042035,4.97853,3812.3,3811.8,0.07770283]
[1717733042255,4.97853,3812.3,3811.9,0.55]
[1717733042397,6.38028072,3812.3,3811.7,0.55]
[1717733042597,6.38028072,3812.3,3811.6,0.55]
[1717733042828,6.38028072,3812.3,3811.7,0.07770283]
[1717733043010,6.38028072,3812.3,3811.8,0.55]
[1717733043207,0.79552579,3812.2,3811.8,0.55]
[1717733043406,2.62326,3812.1,3811.6,0.55]
[1717733043612,2.62326,3812.1,3811.7,0.07768646]
[1717733043838,2.62326,3812.1,3811.8,0.55]
[1717733044343,2.62339,3811.9,3811.2,2.6238]
[1717733044498,2.3043,3811.8,3811.3,0.55]
[1717733044698,2.3043,3811.8,3811.3,0.62767664]
[1717733045704,4.92747,3812.2,3811.4,2.62366]
[1717733045904,4.92747,3812.2,3811.5,0.55]
[1717733046118,0.79041979,3812.1,3811.5,0.55]
[1717733046314,0.79041979,3812.1,3811.6,0.07774211]
[1717733046609,0.79041979,3812.1,3811.7,0.55]
[1717733046812,0.79041979,3812.1,3811.8,0.07772247]
[1717733047028,0.79041979,3812.1,3811.5,0.55]
[1717733047238,0.79041979,3812.1,3811.6,0.07772247]
[1717733047436,4.92747,3812.2,3811.7,0.55]
[1717733047645,4.92747,3812.2,3811.5,0.55]
[1717733047646,4.92747,3812.2,3811.8,0.07766027]
[1717733047821,4.92747,3812.2,3811.5,0.55]
[1717733048024,0.79042315,3812.1,3812.0,0.785]
[1717733048629,0.79042315,3812.1,3812.0,0.86266027]
[1717733049614,0.79042315,3812.1,3812.0,0.07766027]
[1717733049934,0.79042315,3812.1,3811.5,0.55]
[1717733049935,2.62329,3812.0,3811.5,0.55]
[1717733050132,2.62329,3812.0,3811.9,0.785]
[1717733050462,3.49276925,3812.0,3811.7,0.785]
[1717733050759,3.49276925,3812.0,3811.9,0.785]
[1717733053257,2.62329,3812.0,3811.9,0.785]
[1717733053554,2.62329,3812.0,3811.9,0.8626439]
[1717733053760,1.57502867,3812.1,3811.9,1.4126439]
[1717733053963,1.57502867,3812.1,3812.0,0.55]
[1717733054623,1.57502867,3812.1,3812.0,0.6276439]
[1717733056968,2.62322,3812.1,3812.0,1.4126439]
[1717733057321,3.08241817,3812.1,3812.0,0.0776439]
[1717733057531,3.08241817,3812.1,3811.8,0.785]
[1717733058049,1.57500606,3812.0,3811.9,0.6275457]
[1717733058401,2.14201701,3812.5,3811.9,6.3338757]
[1717733058536,0.56701095,3812.5,3812.4,0.785]
[1717733058725,1.78989765,3812.5,3812.4,1.335]
[1717733058920,1.2228867,3812.5,3812.4,1.335]
[1717733059117,1.2228867,3812.5,3812.4,1.4125457]
[1717733059118,3.36463451,3812.5,3812.4,1.4125457]
[1717733059317,3.36463455,3812.5,3812.4,0.6275457]
[1717733059560,3.36464739,3812.5,3812.4,0.0775457]
[1717733059760,3.36464739,3812.5,3811.9,4.92133]
[1717733059761,5.98761434,3812.5,3812.2,0.785]
[1717733060067,4.41278995,3812.5,3812.3,0.0775457]
[1717733060230,2.76257371,3812.4,3811.9,2.298]
[1717733060551,1.187679,3812.4,3812.0,0.55]
[1717733060865,1.187679,3812.4,3812.1,0.0775457]
[1717733061659,2.62308,3812.3,3812.1,0.0775457]
[1717733061971,2.62327,3812.1,3811.3,0.785]
[1717733062169,2.62327,3812.1,3811.5,0.785]
[1717733062375,4.1983284,3812.1,3811.5,0.785]
[1717733062776,4.1983284,3812.1,3811.7,0.785]
[1717733063133,4.1983284,3812.1,3811.8,0.07751624]
[1717733063334,4.73692914,3812.1,3811.8,0.07751624]
[1717733063730,4.73692914,3812.1,3811.4,5.06679]
[1717733063934,4.73692914,3812.1,3811.5,1.335]
[1717733064148,2.62337,3811.9,3811.5,0.55]
[1717733064353,2.04876131,3811.8,3811.6,0.07751624]
[1717733064637,2.04876131,3811.8,3811.5,0.55]
[1717733064638,0.47370291,3811.8,3811.7,0.07751297]
[1717733064953,0.47370291,3811.8,3811.5,1.335]
[1717733065281,4.50840486,3811.7,3811.0,0.785]
[1717733065491,4.50840486,3811.7,3810.8,2.62411]
[1717733065492,1.57519757,3811.5,3811.2,0.785]
[1717733065981,4.19869757,3811.7,3811.2,0.785]
[1717733066156,2.14213082,3811.8,3811.6,0.785]
[1717733066355,2.14213082,3811.8,3811.4,0.785]
[1717733066356,0.47654208,3811.8,3811.4,0.785]
[1717733066567,1.57519757,3811.9,3811.4,0.785]
[1717733066743,1.57519757,3812.0,3811.5,0.55]
[1717733067344,1.57519757,3811.9,3811.5,0.55]
[1717733067557,2.62336,3811.9,3811.6,0.07770283]
[1717733067842,4.19855757,3811.9,3811.5,0.55]
[1717733068042,4.19855757,3811.9,3811.6,0.07770283]
[1717733068273,4.19855757,3811.9,3811.4,0.55]
[1717733068474,4.19855757,3811.9,3811.5,0.07767337]
[1717733068839,2.62336,3811.9,3811.6,0.55]
[1717733069150,2.62336,3811.9,3811.7,0.07771265]
[1717733069363,2.62336,3811.9,3811.8,0.55]
[1717733069549,3.04321576,3811.9,3811.7,0.07771265]
[1717733069759,4.61841333,3811.9,3811.2,3.40879]
[1717733069977,4.61841333,3811.9,3811.8,0.07771265]
[1717733070499,3.04321576,3811.9,3811.4,0.785]
[1717733070701,1.57519757,3812.0,3811.8,0.07771265]
[1717733071056,1.57519757,3812.0,3811.4,0.785]
[1717733071256,1.57519757,3812.0,3811.5,0.62767337]
[1717733074354,1.57519757,3812.1,3811.5,0.62767337]
[1717733075070,1.57519757,3812.1,3811.6,0.785]
[1717733075253,1.57519757,3812.1,3811.7,0.62762754]
[1717733075462,1.57519757,3812.2,3812.0,0.785]
[1717733075660,1.57519757,3812.3,3812.1,0.55]
[1717733075909,4.76509082,3812.5,3812.1,0.55]
[1717733076268,1.57519757,3812.4,3812.1,0.55]
[1717733076898,4.76509082,3812.5,3812.1,0.55]
[1717733077980,1.57519757,3812.4,3812.1,0.55]
[1717733079822,4.76509082,3812.5,3812.1,0.55]
[1717733081195,4.19815757,3812.5,3812.2,0.785]
[1717733081511,2.62296,3812.5,3812.3,0.55]
[1717733082018,2.62296,3812.5,3812.4,0.07739184]
[1717733082175,2.62296,3812.5,3812.4,0.62739184]
[1717733082715,1.57519757,3812.5,3812.4,1.41239184]
[1717733082890,1.57519757,3812.6,3812.4,1.41239184]
[1717733083695,1.57519757,3812.6,3812.4,0.62739184]
[1717733083916,1.57519757,3812.7,3812.4,0.62739184]
[1717733084119,1.57519757,3812.7,3812.4,0.55]
[1717733084301,1.57519757,3812.7,3812.2,0.785]
[1717733084302,1.57519757,3812.7,3812.3,0.55]
[1717733084507,1.57478969,3812.7,3812.3,0.55]
[1717733085914,1.57478969,3812.7,3812.4,0.07739184]
[1717733086220,1.57478969,3812.7,3812.5,0.55]
[1717733086717,1.57478969,3812.7,3812.6,0.07739184]
[1717733086922,1.57478969,3812.7,3812.5,0.55]
[1717733087126,1.57478969,3812.7,3812.6,0.07739184]
[1717733087296,1.57478969,3812.7,3812.4,0.55]
[1717733087498,1.57478969,3812.7,3812.5,0.07739184]
[1717733089123,4.19752289,3812.8,3812.5,0.07739184]
[1717733089786,4.19752289,3812.8,3812.6,0.55]
[1717733089986,4.19752289,3812.8,3812.6,0.62735584]
[1717733090418,4.68674047,3812.8,3812.6,0.07735584]
[1717733090920,1.57475289,3812.7,3812.3,0.785]
[1717733091122,1.57475289,3812.7,3812.4,0.55]
[1717733091422,1.57475289,3812.7,3812.3,0.785]
[1717733091623,1.57475289,3812.8,3812.4,0.55]
[1717733091921,4.19745289,3812.9,3812.4,0.55]
[1717733092632,2.6227,3812.9,3812.5,3.2005]
[1717733092835,2.6227,3812.9,3812.6,0.55]
[1717733093324,2.6227,3812.9,3812.7,0.785]
[1717733093533,2.60433865,3812.9,3812.8,0.55]
[1717733093884,0.1277419,3813.0,3812.7,0.785]
[1717733094137,0.1277419,3813.0,3812.8,0.55]
[1717733094920,0.1277419,3813.0,3812.5,5.82344]
[1717733094921,0.1277419,3813.0,3812.7,0.785]
[1717733095231,0.1277419,3813.0,3812.8,0.55]
[1717733095416,2.7503519,3813.0,3812.6,0.55]
[1717733095606,2.7503519,3813.0,3812.6,1.335]
[1717733096011,2.7503519,3813.0,3812.8,0.785]
[1717733096211,2.7503519,3813.0,3812.6,1.335]
[1717733096399,2.7503519,3813.0,3812.6,0.55]
[1717733096594,2.7503519,3813.0,3812.6,1.335]
[1717733097039,2.7503519,3813.0,3812.8,0.785]
[1717733097498,2.7503519,3813.0,3812.9,0.07735584]
[1717733099215,3.18285076,3813.0,3812.6,0.55]
[1717733099416,4.32498861,3813.0,3812.7,0.785]
[1717733099595,4.32498861,3813.0,3812.9,0.785]
[1717733099795,2.7503519,3813.0,3812.6,1.335]
[1717733100335,2.7503519,3813.0,3812.8,0.785]
[1717733100505,2.7503519,3813.0,3812.9,0.55]
[1717733100711,2.7503519,3813.0,3812.6,1.335]
[1717733100951,4.32498861,3813.0,3812.6,1.335]
[1717733101102,4.32498861,3813.0,3812.7,0.07735584]
[1717733102836,4.75748747,3813.0,3812.7,0.07735584]
[1717733103137,2.62274,3812.8,3812.7,0.07735584]
[1717733103340,2.62274,3812.8,3812.6,0.785]
[1717733103502,2.62274,3812.8,3812.7,0.62733294]
[1717733104721,2.62274,3812.8,3812.7,0.07733294]
[1717733104924,3.05525186,3812.8,3812.3,0.785]
[1717733105144,2.6229,3812.6,3811.9,2.62331]
[1717733105324,2.6229,3812.6,3811.6,5.04482]
[1717733105325,4.19753671,3812.6,3811.6,5.04482]
[1717733105505,2.62304,3812.4,3811.9,0.785]
[1717733105902,1.57463671,3812.5,3812.1,0.785]
[1717733106431,1.57463671,3812.6,3812.2,0.07733294]
[1717733106740,1.57463671,3812.6,3812.3,0.55]
[1717733106921,1.57463671,3812.6,3812.1,0.785]
[1717733106922,1.57463671,3812.6,3812.2,2.9029]
[1717733107339,1.57463671,3812.6,3812.3,0.07733294]
[1717733107517,1.57463671,3812.6,3812.4,0.55]
[1717733107918,1.57463671,3812.6,3812.5,0.07733294]
[1717733108156,1.57463671,3812.6,3812.5,0.55]
[1717733108361,2.62285,3812.7,3812.4,0.55]
[1717733108362,1.57463671,3812.7,3812.4,0.55]
[1717733108565,1.57463671,3812.9,3812.5,0.785]
[1717733108781,2.7503819,3813.0,3812.6,0.55]
[1717733108782,1.57463671,3812.8,3812.6,0.55]
[1717733108917,2.7503819,3813.0,3812.6,0.62727403]
[1717733108918,1.57463671,3812.9,3812.6,0.62727403]
[1717733109119,1.57463671,3812.8,3812.6,0.62727403]
[1717733110286,4.19739671,3812.8,3812.6,0.62727403]
[1717733110424,4.19739671,3812.8,3812.6,0.07727403]
[1717733110762,4.19739671,3812.8,3812.3,0.785]
[1717733110996,4.19739671,3812.8,3812.4,0.62727403]
[1717733111380,1.57463671,3812.7,3812.4,0.62727403]
[1717733112967,4.19739671,3812.8,3812.4,0.62727403]
[1717733113366,1.57463671,3812.8,3812.5,0.785]
[1717733113669,0.1277419,3813.0,3812.6,0.55]
[1717733113670,1.57469095,3812.9,3812.6,0.55]
[1717733113830,1.57469095,3812.9,3812.6,0.62727403]
[1717733114165,0.1277419,3813.0,3812.6,0.62727403]
[1717733114361,1.57469682,3812.9,3812.6,0.62727403]
[1717733115351,4.19738682,3812.9,3812.6,0.62727403]
[1717733115934,4.19738682,3812.9,3812.6,1.41227403]
[1717733116479,4.19738682,3812.9,3812.6,0.62727403]
[1717733116651,4.19738682,3812.9,3812.6,1.41227403]
[1717733116846,4.19738682,3812.9,3812.6,0.62727403]
[1717733117495,1.57469682,3812.8,3812.6,0.62727403]
[1717733119359,1.57469682,3812.8,3812.7,0.07723803]
[1717733121761,2.62269,3812.9,3812.7,0.07723803]
[1717733121975,3.62586905,3812.9,3812.7,0.07723803]
[1717733122173,3.62586905,3812.9,3812.6,0.55]
[1717733122390,3.04059085,3812.8,3812.6,0.55]
[1717733122694,2.62281,3812.7,3812.3,0.55]
[1717733122851,1.57481852,3812.5,3812.3,0.55]
[1717733123050,1.57481852,3812.5,3812.4,0.785]
[1717733123283,1.57482564,3812.5,3812.4,1.335]
[1717733123487,1.57482564,3812.6,3812.4,0.55]
[1717733123667,1.57482564,3812.6,3812.3,0.55]
[1717733123996,3.18974697,3812.7,3812.3,0.55]
[1717733124284,1.57482493,3812.6,3812.3,0.55]
[1717733124785,1.57482493,3812.6,3812.4,0.07723803]
[1717733124988,1.57482493,3812.5,3812.4,0.07723803]
[1717733125285,1.57482493,3812.6,3812.3,0.785]
[1717733125494,2.62295,3812.5,3812.4,0.07723803]
[1717733125794,1.57482493,3812.5,3812.4,0.07723803]
[1717733126088,1.57482493,3812.6,3812.4,0.62723803]
[1717733126251,1.57482493,3812.6,3812.3,0.785]
[1717733126452,1.57482493,3812.6,3812.5,0.07723803]
[1717733126647,1.57482493,3812.6,3812.4,0.55]
[1717733126873,4.19762493,3812.8,3812.5,0.785]
[1717733127077,4.19762493,3812.8,3812.5,3.1779955]
[1717733127352,4.19762493,3812.8,3812.5,2.3929955]
[1717733127353,2.6228,3812.8,3812.5,2.3929955]
[1717733127979,4.19762493,3812.8,3812.5,2.3929955]
[1717733128764,2.6228,3812.8,3812.6,0.55]
[1717733128952,2.6228,3812.8,3812.7,0.07700897]
[1717733129899,4.19762493,3812.8,3812.7,0.07700897]
[1717733130697,4.68685531,3812.8,3812.7,0.07700897]
[1717733130897,3.11203038,3812.8,3812.7,0.07700897]
[1717733131202,3.11203038,3812.8,3812.2,0.785]
[1717733131396,4.19764985,3812.6,3812.3,0.55]
[1717733131566,4.19764985,3812.6,3812.3,0.62696316]
[1717733131770,1.57475985,3812.5,3812.3,0.66869218]
[1717733132075,1.59539845,3812.5,3812.3,0.55]
[1717733132389,0.0206386,3812.5,3812.3,0.55]
[1717733133092,1.59544647,3812.5,3812.3,0.55]
[1717733133396,0.0206386,3812.5,3812.3,0.55]
[1717733133989,0.0206386,3812.5,3812.2,0.785]
[1717733134216,0.0206386,3812.5,3812.3,0.55]
[1717733134680,0.0206386,3812.5,3812.1,0.55]
[1717733134887,0.0206386,3812.5,3812.2,0.785]
[1717733135201,0.0206386,3812.5,3812.3,0.55]
[1717733135794,0.0206386,3812.5,3812.2,0.785]
[1717733135958,0.0206386,3812.5,3812.3,0.55]
[1717733136867,0.0206386,3812.5,3812.4,3.1344]
[1717733137202,0.0206386,3812.5,3812.4,3.80310202]
[1717733138659,0.0206386,3812.5,3812.4,3.01810202]
[1717733138859,0.0206386,3812.5,3812.4,3.80310202]
[1717733139773,0.0206386,3812.5,3812.4,3.01810202]
[1717733139977,0.0206386,3812.5,3812.4,3.80310202]
[1717733141196,0.0206386,3812.5,3812.4,3.01810202]
[1717733141900,0.0206386,3812.5,3812.4,3.80310202]
[1717733142097,0.0206386,3812.5,3812.4,4.44572822]
[1717733145339,0.0206386,3812.5,3812.4,3.66072822]
[1717733145546,0.0206386,3812.5,3812.4,4.44572822]
[1717733153518,0.0206386,3812.5,3812.4,2.09632822]
[1717733158816,0.0206386,3812.5,3812.4,4.43482822]
[1717733165331,0.0206386,3812.5,3812.4,3.64982822]
[1717733165542,0.0206386,3812.5,3812.4,5.34603437]
[1717733165842,0.0206386,3812.5,3812.4,6.71284707]
[1717733165843,0.01621942,3812.5,3812.4,6.71284707]
[1717733166315,2.26656132,3814.0,3813.3,2.62236]
[1717733166512,2.26656132,3814.0,3813.6,0.785]
[1717733166716,2.62187,3814.1,3813.8,0.785]
[1717733167210,2.62187,3814.1,3813.9,0.11846975]
[1717733167429,2.62187,3814.1,3813.8,0.785]
[1717733167964,2.62187,3814.1,3814.0,0.785]
[1717733168124,2.62187,3814.1,3813.8,0.785]
[1717733168675,2.62187,3814.1,3813.9,0.11820154]
[1717733168949,3.04149621,3814.1,3814.0,0.785]
[1717733169155,3.04149621,3814.1,3813.9,0.11820154]
[1717733169324,3.04149621,3814.1,3813.8,0.785]
[1717733169724,3.04149621,3814.1,3813.3,2.4924]
[1717733169929,2.62187,3814.1,3813.9,0.785]
[1717733170216,2.90918827,3814.3,3813.9,0.785]
[1717733170413,3.0,3814.2,3813.4,0.55]
[1717733170649,5.3425,3814.3,3814.0,0.785]
[1717733171666,2.3425,3814.3,3814.0,0.785]
[1717733171960,2.3425,3814.3,3813.4,0.55]
[1717733172155,2.3425,3814.3,3814.2,0.785]
[1717733172360,2.2749,3814.6,3813.4,0.55]
[1717733172654,2.2749,3814.6,3813.5,0.42244154]
[1717733172827,2.2749,3814.6,3814.4,0.785]
[1717733173031,2.2749,3814.6,3814.4,0.66161984]
[1717733173224,4.89643,3814.6,3813.6,0.55]
[1717733173444,4.89643,3814.6,3813.5,0.30424]
[1717733173445,3.0,3814.5,3814.3,0.785]
[1717733173857,3.0,3814.5,3814.1,0.785]
[1717733174031,3.0,3814.5,3813.5,0.30424]
[1717733174032,3.0,3814.5,3814.4,0.785]
[1717733174210,4.89643,3814.6,3814.4,0.785]
[1717733174410,0.489643,3814.5,3813.3,9.9824]
[1717733174614,0.489643,3814.5,3813.3,2.4924]
[1717733174615,3.0,3814.5,3813.3,2.4924]
[1717733174813,2.3244,3814.2,3813.4,0.1179628]
[1717733175014,2.3244,3814.2,3813.7,0.785]
[1717733175454,2.3244,3814.2,3813.8,0.1179628]
[1717733175641,3.119013,3814.2,3813.8,0.1179628]
[1717733175851,3.119013,3814.2,3813.8,0.9029628]
[1717733176621,3.119013,3814.2,3813.8,0.1179628]
[1717733176929,3.119013,3814.2,3813.6,0.785]
[1717733177360,3.119013,3814.2,3813.7,0.1179628]
[1717733177664,3.119013,3814.2,3813.7,0.785]
[1717733177845,3.119013,3814.2,3813.8,0.1179628]
[1717733178156,3.069013,3814.2,3813.8,0.1179628]
[1717733178750,3.0,3814.1,3813.9,0.785]
[1717733179469,3.0,3814.2,3814.0,0.1179628]
[1717733179757,2.62154,3814.6,3814.0,0.1179628]
[1717733179758,3.0,3814.5,3814.0,0.1179628]
[1717733179961,0.55,3814.4,3813.9,0.785]
[1717733181329,3.17167,3814.4,3813.9,0.785]
[1717733181534,3.0,3814.3,3813.7,0.785]
[1717733181829,3.17179,3814.2,3813.7,0.785]
[1717733182067,5.4502,3814.1,3812.8,2.347]
[1717733182393,5.4502,3814.1,3813.6,0.785]